bitfinex/quotes_BTCUSD_20251012
["timestamp","ask_amount","ask_price","bid_price","bid_amount"]
[1760238599739,0.17955113,111390.0,111360.0,0.00792473]
[1760238599953,0.18852859,111390.0,111360.0,0.00014986]
[1760238600157,0.00897746,111390.0,111360.0,0.00014986]
[1760238600375,0.73621705,111370.0,111360.0,0.00014986]
[1760238600590,1.07621705,111370.0,111320.0,0.07939849]
[1760238600822,1.07628157,111330.0,111320.0,0.00777487]
[1760238601031,0.17967381,111320.0,111300.0,0.07939849]
[1760238601240,0.18862839,111330.0,111300.0,0.00777487]
[1760238601443,0.73626544,111340.0,111300.0,0.00777487]
[1760238601444,0.13646738,111340.0,111300.0,0.00777487]
[1760238601651,0.13646738,111340.0,111300.0,0.02574432]
[1760238601652,0.17966363,111320.0,111300.0,0.02574432]
[1760238601887,0.17966363,111320.0,111300.0,0.00827414]
[1760238601888,0.25518837,111310.0,111300.0,0.00827414]
[1760238602099,0.77479911,111320.0,111300.0,0.00827414]
[1760238602307,0.77479911,111320.0,111260.0,0.001]
[1760238602308,0.17973337,111280.0,111260.0,0.001]
[1760238602517,0.73637844,111270.0,111260.0,0.00897699]
[1760238602728,0.17980541,111240.0,111220.0,0.001]
[1760238602938,0.00898876,111250.0,111230.0,0.07162362]
[1760238602939,0.18878623,111250.0,111230.0,0.07162362]
[1760238603147,0.17980436,111270.0,111220.0,0.01898237]
[1760238603148,0.56562262,111270.0,111220.0,0.01898237]
[1760238603365,0.74540082,111250.0,111220.0,0.001]
[1760238603572,0.56562343,111260.0,111220.0,0.001]
[1760238603779,0.18876579,111250.0,111220.0,0.001]
[1760238603991,0.73644308,111230.0,111220.0,0.001]
[1760238604201,1.10144307,111230.0,111220.0,0.001]
[1760238604470,1.10144307,111230.0,111190.0,0.001]
[1760238604471,0.28930797,111230.0,111190.0,0.001]
[1760238604689,0.73647555,111210.0,111190.0,0.001]
[1760238604904,1.11499159,111200.0,111190.0,0.001]
[1760238605119,0.6588661,111200.0,111190.0,0.00114992]
[1760238605326,1.21550158,111200.0,111190.0,0.00114992]
[1760238605538,0.21388818,111190.0,111160.0,0.00099998]
[1760238605784,0.73654013,111170.0,111160.0,0.00099998]
[1760238606012,1.10154012,111170.0,111160.0,0.00099998]
[1760238606224,1.17705012,111170.0,111160.0,0.00099998]
[1760238606425,0.59541465,111170.0,111160.0,0.00099998]
[1760238606635,0.21403746,111190.0,111180.0,0.00099998]
[1760238606636,0.18002157,111190.0,111180.0,0.00099998]
[1760238606847,1.17716704,111190.0,111180.0,0.00099998]
[1760238607059,0.97229476,111190.0,111180.0,0.00099998]
[1760238607267,0.00014928,111190.0,111180.0,0.00099998]
[1760238607696,0.97229476,111190.0,111180.0,0.00099998]
[1760238607904,1.15216705,111190.0,111180.0,0.00099998]
[1760238608119,0.81216705,111190.0,111180.0,0.00099998]
[1760238608326,1e-08,111190.0,111180.0,0.00099998]
[1760238608581,0.00898553,111290.0,111260.0,0.00099998]
[1760238608797,0.00014995,111290.0,111260.0,0.00099998]
[1760238609224,0.17974296,111270.0,111260.0,0.00099998]
[1760238609431,0.04763548,111290.0,111260.0,0.00099998]
[1760238609432,0.00014995,111290.0,111260.0,0.00099998]
[1760238609682,0.11415995,111290.0,111260.0,0.00099998]
[1760238609899,0.12817947,111290.0,111260.0,0.00099998]
[1760238610113,0.08967947,111290.0,111270.0,0.0301519]
[1760238610318,0.12499998,111350.0,111280.0,0.23683773]
[1760238610536,0.08952952,111320.0,111310.0,0.20981576]
[1760238610745,0.08952952,111320.0,111290.0,0.03913743]
[1760238611000,0.64162575,111350.0,111300.0,0.01796945]
[1760238611235,0.55663548,111340.0,111300.0,0.1796938]
[1760238611475,0.08952952,111310.0,111300.0,0.20984641]
[1760238611680,0.08952952,111310.0,111280.0,0.18870976]
[1760238611904,0.08952952,111290.0,111270.0,0.17969592]
[1760238612117,0.17966426,111320.0,111270.0,0.10611702]
[1760238612118,0.08952952,111280.0,111270.0,0.10611702]
[1760238612332,0.08952952,111280.0,111260.0,0.17975877]
[1760238612542,0.56561939,111310.0,111260.0,0.03030185]
[1760238612543,0.08952952,111270.0,111260.0,0.03030185]
[1760238612750,0.08952952,111270.0,111260.0,0.00014995]
[1760238613387,0.08952952,111270.0,111240.0,0.17563756]
[1760238613612,0.08952952,111270.0,111230.0,0.07162362]
[1760238613613,0.08952952,111250.0,111230.0,0.07162362]
[1760238613842,0.08952952,111240.0,111230.0,0.07162362]
[1760238614062,0.08952952,111240.0,111210.0,0.26042212]
[1760238614279,0.08952952,111220.0,111210.0,0.26042212]
[1760238614491,0.08952952,111220.0,111210.0,0.11441766]
[1760238614703,0.07162362,111280.0,111230.0,0.17979742]
[1760238614910,0.18873067,111270.0,111230.0,0.18784768]
[1760238615115,0.18873067,111270.0,111230.0,0.00805026]
[1760238615116,0.18874767,111260.0,111230.0,0.00805026]
[1760238615324,0.18878289,111240.0,111210.0,0.07162362]
[1760238615530,0.55663548,111240.0,111210.0,0.07162362]
[1760238615738,0.00899038,111230.0,111210.0,0.00805026]
[1760238615961,0.18880236,111230.0,111190.0,0.07967388]
[1760238616170,0.02499999,111250.0,111210.0,0.25145893]
[1760238616414,0.00014967,111260.0,111250.0,0.17977528]
[1760238616621,0.00014967,111260.0,111230.0,0.18879638]
[1760238616840,0.00014967,111260.0,111240.0,0.08952952]
[1760238617049,0.00014967,111260.0,111250.0,0.08952952]
[1760238617310,0.00014967,111260.0,111200.0,0.62877678]
[1760238617311,0.18878543,111240.0,111190.0,0.07162362]
[1760238617518,0.02499999,111240.0,111210.0,0.16115314]
[1760238617736,0.17980828,111230.0,111210.0,0.08952952]
[1760238617942,0.73644329,111230.0,111210.0,0.08952952]
[1760238618166,0.1697402,111230.0,111220.0,0.08952952]
[1760238618397,1.04086637,111230.0,111220.0,0.08952952]
[1760238618617,1.14086636,111230.0,111220.0,0.08952952]
[1760238618820,0.17988846,111180.0,111170.0,0.07162362]
[1760238619022,0.20488845,111180.0,111170.0,0.07162362]
[1760238619236,0.51988846,111180.0,111170.0,0.08952952]
[1760238619442,0.10899441,111180.0,111140.0,0.0004]
[1760238619656,0.27987437,111210.0,111160.0,0.21391463]
[1760238619657,0.55663548,111210.0,111160.0,0.21391463]
[1760238619856,0.55663548,111190.0,111140.0,0.0004]
[1760238620065,0.55663548,111170.0,111160.0,0.00049976]
[1760238620297,0.55663548,111170.0,111160.0,0.09002928]
[1760238620298,1.17654012,111170.0,111160.0,0.09002928]
[1760238620935,1.07654013,111170.0,111160.0,0.00049976]
[1760238621191,1.17654012,111170.0,111160.0,0.09002928]
[1760238621398,1.07654013,111170.0,111160.0,0.09002928]
[1760238621634,0.22669037,111180.0,111150.0,0.07162362]
[1760238621854,0.55663548,111160.0,111140.0,0.0004]
[1760238622085,0.7365725,111150.0,111140.0,0.0004]
[1760238622313,0.82610202,111150.0,111140.0,0.0004]
[1760238622533,1.16610202,111150.0,111140.0,0.0004]
[1760238622968,0.646165,111150.0,111140.0,0.0004]
[1760238623198,0.82610202,111150.0,111140.0,0.0004]
[1760238623415,0.82610202,111150.0,111140.0,0.73698869]
[1760238623416,0.08952952,111150.0,111140.0,0.73698869]
[1760238623651,0.08952952,111150.0,111140.0,0.79214058]
[1760238623866,0.08952952,111150.0,111140.0,0.77997584]
[1760238624069,0.08952952,111150.0,111140.0,0.19834037]
[1760238624313,0.08952952,111150.0,111140.0,0.22334036]
[1760238624518,0.08952952,111150.0,111140.0,0.19318846]
[1760238624958,0.00049874,111180.0,111170.0,0.20490464]
[1760238625171,0.09002826,111180.0,111170.0,0.20490464]
[1760238626019,0.09002826,111180.0,111170.0,0.02499999]
[1760238626248,0.26991861,111180.0,111150.0,0.02499999]
[1760238626461,0.08952952,111160.0,111150.0,0.20493701]
[1760238626663,0.08952952,111160.0,111150.0,0.27656063]
[1760238626872,0.08952952,111160.0,111150.0,0.20493701]
[1760238627500,0.08952952,111160.0,111150.0,0.02499999]
[1760238627706,0.10246585,111160.0,111150.0,0.02499999]
[1760238628127,0.10246585,111160.0,111150.0,0.20493701]
[1760238628335,0.10246585,111160.0,111150.0,0.76157249]
[1760238628589,0.00049874,111180.0,111150.0,0.76157249]
[1760238628590,0.00049874,111180.0,111170.0,0.20490464]
[1760238628830,0.6282591,111230.0,111190.0,0.02499999]
[1760238628831,0.08952952,111200.0,111190.0,0.02499999]
[1760238629041,0.08952952,111200.0,111190.0,0.20487228]
[1760238629689,0.08952952,111200.0,111190.0,0.02499999]
[1760238629890,0.08952952,111200.0,111190.0,0.20487228]
[1760238630692,0.08952952,111200.0,111190.0,0.21386589]
[1760238632211,0.38925833,111270.0,111220.0,0.21381039]
[1760238632212,0.18874772,111260.0,111220.0,0.21381039]
[1760238632415,0.08952952,111240.0,111230.0,0.19778836]
[1760238632623,0.08952952,111240.0,111230.0,0.20480759]
[1760238633083,0.08952952,111240.0,111220.0,0.02499999]
[1760238633287,0.08952952,111230.0,111190.0,0.1888659]
[1760238633498,0.08952952,111200.0,111180.0,0.09662361]
[1760238633778,0.08952952,111190.0,111180.0,0.07162362]
[1760238633972,0.08952952,111190.0,111170.0,0.02499999]
[1760238634212,0.08952952,111190.0,111170.0,0.20490463]
[1760238634438,0.08952952,111190.0,111180.0,0.02499999]
[1760238634679,0.08952952,111190.0,111170.0,0.02499999]
[1760238634903,0.2784124,111180.0,111170.0,0.00049874]
[1760238635181,0.83504788,111180.0,111170.0,0.00049874]
[1760238635388,0.83504788,111180.0,111130.0,0.07162362]
[1760238635389,0.17995321,111140.0,111130.0,0.07162362]
[1760238635594,0.26948273,111140.0,111130.0,0.0717729]
[1760238635807,0.26948273,111140.0,111130.0,0.00014928]
[1760238636212,0.08952952,111140.0,111130.0,0.00014928]
[1760238636821,0.26948273,111140.0,111130.0,0.00014928]
[1760238637056,0.08952952,111140.0,111130.0,0.00014928]
[1760238637472,0.08952952,111140.0,111130.0,0.18011868]
[1760238637680,0.08952952,111140.0,111130.0,0.20511867]
[1760238637883,0.11240952,111140.0,111130.0,0.02514927]
[1760238638089,0.11240952,111140.0,111130.0,0.00014928]
[1760238638295,0.12482952,111140.0,111130.0,0.00014928]
[1760238638718,0.12482952,111140.0,111130.0,0.01807261]
[1760238639179,0.12482952,111140.0,111130.0,0.223042]
[1760238639381,0.12482952,111140.0,111130.0,0.23527057]
[1760238639382,0.01242,111140.0,111130.0,0.23527057]
[1760238639583,0.01242,111150.0,111140.0,0.17995321]
[1760238639774,0.02288,111160.0,111150.0,0.20493701]
[1760238639906,0.11240952,111160.0,111150.0,0.20493701]
[1760238640322,0.11240952,111160.0,111140.0,0.02499999]
[1760238640678,0.11240952,111160.0,111130.0,0.00014928]
[1760238640679,0.08952952,111150.0,111130.0,0.00014928]
[1760238640879,0.08952952,111140.0,111130.0,0.02514927]
[1760238641028,0.12482952,111140.0,111130.0,0.00014928]
[1760238641224,0.12482952,111140.0,111110.0,0.18900053]
[1760238641454,0.12482952,111140.0,111110.0,0.00014996]
[1760238641455,0.08952952,111120.0,111110.0,0.00014996]
[1760238641854,0.16759952,111120.0,111110.0,0.22315193]
[1760238642052,0.5184542,111170.0,111130.0,0.20496939]
[1760238642053,0.07807,111150.0,111130.0,0.20496939]
[1760238642340,0.20743952,111140.0,111120.0,0.09796242]
[1760238642543,0.16759952,111130.0,111110.0,0.02514995]
[1760238642947,0.08952952,111130.0,111110.0,0.02514995]
[1760238643150,0.08952952,111130.0,111120.0,0.02499999]
[1760238643365,0.08952952,111130.0,111110.0,0.00014996]
[1760238643767,0.16759952,111120.0,111110.0,0.00014996]
[1760238644191,0.16759952,111120.0,111110.0,0.01584145]
[1760238644394,0.16759952,111120.0,111110.0,0.01107895]
[1760238644601,0.03984,111140.0,111130.0,0.20496939]
[1760238644804,0.12936952,111140.0,111130.0,0.20496939]
[1760238645342,0.20743952,111140.0,111130.0,0.02499999]
[1760238645548,0.20743952,111140.0,111130.0,0.20711095]
[1760238646062,0.20743952,111140.0,111130.0,0.00214156]
[1760238646267,0.39639039,111140.0,111110.0,0.06411311]
[1760238646479,0.08952952,111120.0,111090.0,0.16058676]
[1760238646634,0.16759952,111110.0,111090.0,0.0967736]
[1760238646853,0.12936952,111110.0,111100.0,0.02499999]
[1760238647283,0.08952952,111110.0,111100.0,0.20501799]
[1760238647777,0.20743952,111110.0,111090.0,0.24414727]
[1760238647989,0.20743952,111110.0,111100.0,0.02499999]
[1760238647990,0.12936952,111110.0,111100.0,0.02499999]
[1760238648184,0.12936952,111110.0,111070.0,0.26076157]
[1760238648185,0.18904847,111100.0,111070.0,8e-05]
[1760238648411,0.12936952,111080.0,111070.0,8e-05]
[1760238648610,0.08952952,111080.0,111070.0,0.21308346]
[1760238648782,0.08952952,111080.0,111070.0,0.02507999]
[1760238649018,0.00014949,111100.0,111090.0,0.20503419]
[1760238649219,0.08967901,111100.0,111090.0,0.20503419]
[1760238649486,0.08967901,111100.0,111090.0,0.02499999]
[1760238649487,0.16774901,111100.0,111090.0,0.02499999]
[1760238649660,0.16774901,111100.0,111090.0,0.20503419]
[1760238649868,0.16774901,111100.0,111080.0,0.20505034]
[1760238650083,0.08952952,111090.0,111080.0,0.20505034]
[1760238651032,0.16759952,111090.0,111080.0,0.02499999]
[1760238651243,0.16759952,111090.0,111070.0,0.02507999]
[1760238651503,0.11791,111080.0,111070.0,0.02507999]
[1760238651741,0.38748993,111080.0,111070.0,8e-05]
[1760238651965,0.18907079,111070.0,111040.0,0.16058676]
[1760238652176,0.12936952,111050.0,111040.0,0.09662361]
[1760238652380,0.19278468,111050.0,111040.0,0.09662361]
[1760238652580,0.19278468,111050.0,111040.0,0.02499999]
[1760238652786,0.19278468,111050.0,111040.0,0.00529348]
[1760238652988,0.19278468,111050.0,111040.0,0.22842026]
[1760238653189,0.19278468,111050.0,111040.0,0.03029347]
[1760238653395,0.07487468,111050.0,111040.0,0.21055881]
[1760238653800,0.19278468,111050.0,111040.0,0.21055881]
[1760238654199,0.19278468,111050.0,111040.0,0.00544355]
[1760238654326,0.19278468,111050.0,111040.0,0.03044354]
[1760238654527,0.19278468,111050.0,111040.0,0.21055881]
[1760238655834,0.11471468,111050.0,111040.0,0.21055881]
[1760238656050,0.08772952,111060.0,111050.0,0.18009665]
[1760238656201,0.08772952,111060.0,111040.0,0.21427109]
[1760238656799,0.08772952,111060.0,111050.0,0.22310894]
[1760238657007,0.08772952,111060.0,111050.0,0.02499999]
[1760238658051,0.16267952,111060.0,111050.0,0.02499999]
[1760238658494,0.16267952,111060.0,111040.0,0.00015007]
[1760238658696,0.16447952,111050.0,111040.0,0.18026534]
[1760238658936,0.08952952,111050.0,111040.0,0.02515006]
[1760238659138,0.08952952,111050.0,111040.0,0.20526533]
[1760238659484,0.03984,111070.0,111060.0,0.02499999]
[1760238659693,0.20431952,111070.0,111050.0,0.02499999]
[1760238660079,0.34456336,111060.0,111040.0,0.02515006]
[1760238660263,0.08952952,111050.0,111040.0,0.02515006]
[1760238660493,0.16447952,111050.0,111040.0,0.02515006]
[1760238660927,0.16447952,111050.0,111040.0,0.20526533]
[1760238661143,0.08952952,111050.0,111040.0,0.20526533]
[1760238661364,0.03984,111070.0,111060.0,0.20508282]
[1760238661587,0.03984,111070.0,111050.0,0.18008547]
[1760238661588,0.03984,111080.0,111070.0,0.02499999]
[1760238661809,0.03984,111080.0,111040.0,0.00015007]
[1760238661810,0.18009643,111060.0,111040.0,0.00015007]
[1760238662047,0.03984,111050.0,111040.0,0.00015007]
[1760238662256,0.09004,111050.0,111040.0,0.00015007]
[1760238662483,0.17956952,111050.0,111040.0,0.00015007]
[1760238662746,0.08952952,111050.0,111040.0,0.00015007]
[1760238662946,0.0502,111060.0,111040.0,0.1892711]
[1760238663153,0.08952952,111050.0,111040.0,0.00015007]
[1760238663360,0.17995952,111050.0,111040.0,0.00015007]
[1760238664787,0.08952952,111050.0,111040.0,0.00015007]
[1760238665019,0.00900576,111040.0,111000.0,0.06396315]
[1760238665192,0.18297952,111030.0,111000.0,0.26081104]
[1760238665339,0.05541,111020.0,111000.0,0.26081104]
[1760238665545,0.08952952,111010.0,111000.0,0.26081104]
[1760238665787,0.05555938,111040.0,111020.0,0.18014772]
[1760238665985,0.00014938,111040.0,111030.0,0.19814463]
[1760238666190,0.05555938,111040.0,111020.0,0.18014772]
[1760238666634,0.00014938,111040.0,111030.0,0.18013149]
[1760238666811,0.00014938,111040.0,111030.0,0.19814463]
[1760238666952,0.00014938,111040.0,111030.0,0.18013149]
[1760238667167,0.00014938,111040.0,111030.0,0.21616556]
[1760238667705,0.00014938,111040.0,111030.0,0.18601366]
[1760238667906,0.00014938,111040.0,111030.0,0.32481556]
[1760238668129,0.00014938,111040.0,111030.0,0.38877871]
[1760238668895,0.00014938,111040.0,111030.0,0.31437871]
[1760238669103,0.00014938,111040.0,111030.0,0.00588217]
[1760238669561,0.32520417,111040.0,111030.0,0.00588217]
[1760238670603,0.1450889,111040.0,111030.0,0.00588217]
[1760238671237,0.08952952,111040.0,111030.0,0.00588217]
[1760238671446,0.08952952,111040.0,111030.0,0.18601366]
[1760238671865,0.08952952,111040.0,111030.0,0.00588217]
[1760238672076,0.26964479,111040.0,111030.0,0.00588217]
[1760238672289,0.77509161,111040.0,111030.0,0.00588217]
[1760238672510,0.18016394,111010.0,110980.0,0.07162362]
[1760238672715,0.01708,110990.0,110980.0,0.07162362]
[1760238672937,0.10660952,110990.0,110980.0,0.07162362]
[1760238673161,0.10660952,110990.0,110980.0,0.00294374]
[1760238673350,0.01692,111010.0,110980.0,0.19216702]
[1760238673555,0.08952952,111000.0,110990.0,0.19821605]
[1760238673755,0.08952952,111000.0,110990.0,0.18069707]
[1760238674004,0.08952952,111000.0,110990.0,0.19756519]
[1760238674164,0.08952952,111000.0,110990.0,0.18069707]
[1760238675350,0.08952952,111000.0,110990.0,0.00050066]
[1760238675491,0.08952952,111000.0,110990.0,0.18069707]
[1760238675696,0.09007952,111000.0,110990.0,0.00050066]
[1760238675897,0.2702597,111000.0,110990.0,0.00050066]
[1760238676772,0.77570652,111000.0,110990.0,0.00050066]
[1760238679734,0.09007952,111000.0,110990.0,0.00050066]
[1760238680148,0.09007952,111000.0,110990.0,0.00285544]
[1760238680972,0.09007952,111000.0,110990.0,0.02087508]
[1760238681194,0.2702597,111000.0,110990.0,0.00285544]
[1760238681393,0.09007952,111000.0,110990.0,0.00285544]
[1760238681597,0.2702597,111000.0,110990.0,0.00285544]
[1760238682836,0.77570652,111000.0,110990.0,0.00285544]
[1760238683182,1.11570652,111000.0,110990.0,0.00285544]
[1760238685206,0.43007952,111000.0,110990.0,0.00285544]
[1760238685430,0.09007952,111000.0,110990.0,0.00285544]
[1760238685631,0.08952952,111000.0,110990.0,0.18305185]
[1760238686001,0.08952952,111000.0,110990.0,0.00285544]
[1760238686209,0.07486842,111000.0,110990.0,0.18305185]
[1760238686414,0.07486842,111000.0,110990.0,0.00285544]
[1760238686674,0.07486842,111000.0,110990.0,0.18305185]
[1760238688579,0.03858,111020.0,110990.0,0.18305185]
[1760238688790,0.08952952,111010.0,111000.0,0.01675136]
[1760238689002,0.18018018,111000.0,110990.0,0.00050066]
[1760238689249,0.2697097,111000.0,110990.0,0.00050066]
[1760238689465,0.16869952,111000.0,110990.0,0.00050066]
[1760238689696,0.3488797,111000.0,110990.0,0.00050066]
[1760238690811,0.85432652,111000.0,110990.0,0.00050066]
[1760238691262,1.19432652,111000.0,110990.0,0.00050066]
[1760238693471,0.18024513,110960.0,110950.0,0.07162362]
[1760238693679,0.26977465,110960.0,110950.0,0.071773]
[1760238693878,0.34728465,110960.0,110950.0,0.00014938]
[1760238694107,0.34728465,110960.0,110950.0,0.00486063]
[1760238694333,0.34728465,110960.0,110920.0,0.07170362]
[1760238694334,0.68728465,110960.0,110920.0,0.07170362]
[1760238694568,0.30635339,110930.0,110920.0,0.07185376]
[1760238694787,0.20356952,110930.0,110920.0,0.07185376]
[1760238694980,0.12605952,110930.0,110920.0,0.00023014]
[1760238695113,0.08952952,110930.0,110920.0,0.18054027]
[1760238695311,0.07751,110950.0,110940.0,0.1802764]
[1760238695312,0.01842,110950.0,110940.0,0.1802764]
[1760238695538,0.10794952,110950.0,110930.0,0.1892943]
[1760238695740,0.08952952,110940.0,110930.0,0.1892943]
[1760238696099,0.11062,110970.0,110950.0,0.18025218]
[1760238696273,0.08952952,110960.0,110950.0,0.18025218]
[1760238697106,0.08952952,110960.0,110940.0,0.25323449]
[1760238697308,0.03311,110970.0,110950.0,0.18026137]
[1760238697536,0.08952952,110970.0,110960.0,0.18925738]
[1760238697738,0.12263952,110970.0,110950.0,0.06396315]
[1760238697863,0.16703952,110960.0,110940.0,0.06396315]
[1760238698064,0.18545952,110960.0,110940.0,0.18027744]
[1760238698292,0.18545952,110960.0,110930.0,0.25325745]
[1760238698653,0.18545952,110960.0,110940.0,0.18929087]
[1760238698654,0.08952952,110960.0,110940.0,0.18929087]
[1760238698834,0.08952952,110960.0,110930.0,0.18944444]
[1760238699030,0.08952952,110960.0,110940.0,0.18027696]
[1760238699480,0.08952952,110950.0,110930.0,0.00015014]
[1760238699942,0.08952952,110950.0,110930.0,0.18044386]
[1760238700149,0.37275388,110970.0,110940.0,0.1892915]
[1760238700150,0.00096843,110960.0,110940.0,0.1892915]
[1760238700360,0.09049795,110960.0,110930.0,0.18945855]
[1760238700631,0.09049795,110960.0,110940.0,0.18027564]
[1760238700855,0.10081795,110960.0,110930.0,0.21960638]
[1760238701063,0.08952952,110950.0,110930.0,0.18044196]
[1760238701511,0.26979391,110950.0,110930.0,0.00015014]
[1760238701730,0.00096843,110960.0,110940.0,0.18027762]
[1760238701965,0.00096843,110960.0,110950.0,0.01802613]
[1760238701966,0.09049795,110960.0,110950.0,0.01802613]
[1760238702405,0.09049795,110960.0,110950.0,0.1982875]
[1760238702635,0.00096843,110960.0,110950.0,0.21041327]
[1760238702878,0.00096843,110960.0,110950.0,0.0301519]
[1760238703127,0.00096843,110960.0,110940.0,0.2442384]
[1760238703366,0.09049795,110960.0,110940.0,0.18027525]
[1760238703602,0.09049795,110960.0,110950.0,0.18026137]
[1760238703846,0.00096843,110960.0,110950.0,0.1982875]
[1760238704083,0.00096843,110960.0,110950.0,0.18026137]
[1760238704966,0.03275388,110970.0,110950.0,0.18026137]
[1760238705189,0.08952952,110970.0,110960.0,0.01802451]
[1760238705620,0.78887068,111010.0,110970.0,0.18022713]
[1760238705841,0.78887068,111010.0,110980.0,0.1982332]
[1760238705842,0.08952952,111000.0,110980.0,0.1982332]
[1760238706059,0.08952952,111000.0,110990.0,0.01801964]
[1760238706273,0.08952952,111000.0,110980.0,0.01802126]
[1760238706494,0.26971137,111000.0,110960.0,0.46627254]
[1760238706712,0.08952952,111000.0,110960.0,0.33045171]
[1760238706943,0.57211816,110990.0,110960.0,0.00015014]
[1760238707166,0.18022633,110980.0,110960.0,0.00015014]
[1760238707400,0.08952952,110970.0,110960.0,0.00015014]
[1760238708312,0.22570334,111010.0,110960.0,0.18940752]
[1760238708523,0.08952952,111000.0,110970.0,0.18022372]
[1760238708740,0.26971074,111000.0,110980.0,0.01802126]
[1760238708959,0.18019641,110990.0,110970.0,0.01802288]
[1760238709179,0.08952952,110980.0,110970.0,0.01802288]
[1760238709395,0.78881168,111010.0,110970.0,0.20726321]
[1760238709396,0.08952952,110990.0,110970.0,0.20726321]
[1760238709644,0.08952952,110990.0,110980.0,0.01802126]
[1760238709865,0.08952952,110990.0,110980.0,0.18021265]
[1760238710288,0.03653,111010.0,110980.0,0.18021265]
[1760238710502,0.08952952,111000.0,110990.0,0.23763594]
[1760238710723,0.08952952,111000.0,110990.0,0.2196163]
[1760238710947,0.03653,111010.0,110990.0,0.2196163]
[1760238711168,0.00235524,111000.0,110990.0,0.2196163]
[1760238711631,0.00235524,111000.0,110990.0,0.6706382]
[1760238711851,0.00235524,111000.0,110990.0,1.29770969]
[1760238712064,0.00235524,111000.0,110990.0,0.73460135]
[1760238712540,0.09188476,111000.0,110980.0,0.06396315]
[1760238712758,0.08952952,110990.0,110960.0,0.81647882]
[1760238712971,0.08952952,110990.0,110960.0,0.25337048]
[1760238713189,0.08952952,110990.0,110980.0,0.18021265]
[1760238713406,0.18918493,111020.0,110990.0,0.18019602]
[1760238713628,0.08952952,111010.0,111000.0,0.19819819]
[1760238713888,0.52916541,111060.0,111010.0,0.18916033]
[1760238714108,0.08952952,111050.0,111020.0,0.62638404]
[1760238714355,0.08952952,111050.0,111040.0,0.18011527]
[1760238714577,0.08952952,111070.0,111060.0,0.18008283]
[1760238715007,0.4788279,111070.0,111040.0,0.06396315]
[1760238715214,0.3797947,111060.0,111030.0,0.06396315]
[1760238715427,0.08952952,111050.0,111020.0,0.25872375]
[1760238715627,0.08952952,111050.0,111020.0,0.63851845]
[1760238715836,0.08952952,111050.0,111030.0,0.3797947]
[1760238716093,0.08952952,111050.0,111030.0,0.55992583]
[1760238716326,0.56936983,111070.0,111030.0,0.55992583]
[1760238716327,0.00050035,111070.0,111040.0,0.56891573]
[1760238716554,0.08952952,111050.0,111020.0,0.4192147]
[1760238716782,0.08952952,111040.0,111020.0,0.67999335]
[1760238717020,0.08952952,111040.0,111030.0,0.3797947]
[1760238717509,0.08952952,111040.0,111030.0,0.55992619]
[1760238717979,0.18057293,111070.0,111030.0,0.64980276]
[1760238718179,0.08952952,111060.0,111040.0,0.55990889]
[1760238718520,0.26961235,111060.0,111050.0,0.0180099]
[1760238718723,0.27549726,111060.0,111030.0,0.55992507]
[1760238718922,0.26961235,111060.0,111030.0,0.18013037]
[1760238719145,0.3797947,111050.0,111020.0,0.21956557]
[1760238719359,0.3797947,111050.0,111020.0,0.03942]
[1760238719360,0.18911806,111050.0,111020.0,0.03942]
[1760238719556,0.08952952,111040.0,111020.0,0.61529775]
[1760238719801,0.08952952,111040.0,111020.0,0.3797947]
[1760238720188,0.08952952,111040.0,111010.0,0.72880289]
[1760238720396,0.55992956,111030.0,111000.0,0.07162362]
[1760238720594,0.08952952,111020.0,110980.0,0.50567512]
[1760238720824,0.26967762,111020.0,110980.0,0.64063668]
[1760238721128,0.2607552,111080.0,111030.0,0.18913321]
[1760238721292,0.07162362,111060.0,111050.0,0.18009905]
[1760238721488,0.09002987,111060.0,111040.0,0.22853897]
[1760238721694,0.08952952,111050.0,111040.0,0.22853897]
[1760238722465,0.08952952,111050.0,111030.0,0.18012445]
[1760238722671,0.00050035,111060.0,111050.0,0.18009905]
[1760238722913,0.00050035,111060.0,111050.0,0.03942]
[1760238723145,0.09002987,111060.0,111040.0,0.03942]
[1760238723350,0.09002987,111060.0,111030.0,0.03999]
[1760238723351,0.08952952,111050.0,111030.0,0.03999]
[1760238723537,0.08952952,111050.0,111030.0,0.2201205]
[1760238723757,0.08952952,111050.0,111040.0,0.18011527]
[1760238723965,0.00050035,111060.0,111050.0,0.18009905]
[1760238724290,0.00050035,111060.0,111050.0,0.59988375]
[1760238724464,0.00638526,111060.0,111050.0,0.29385905]
[1760238724670,0.00638526,111060.0,111050.0,0.22008905]
[1760238725149,0.00638526,111060.0,111050.0,0.18009905]
[1760238725352,0.00638526,111060.0,111050.0,0.67365375]
[1760238725764,0.00638526,111060.0,111050.0,0.59988375]
[1760238725976,0.00638526,111060.0,111050.0,0.22008905]
[1760238726209,0.09591478,111060.0,111040.0,0.22010022]
[1760238726429,0.09591478,111060.0,111020.0,0.30873289]
[1760238726430,0.26963148,111050.0,111020.0,0.03942]
[1760238726636,0.26963148,111050.0,111010.0,0.43847023]
[1760238726637,0.18012855,111040.0,111010.0,0.73553541]
[1760238726864,0.08952952,111030.0,111010.0,0.49140832]
[1760238727077,0.08952952,111030.0,111000.0,0.59996228]
[1760238727275,0.08952952,111030.0,111000.0,0.60897128]
[1760238727539,0.08952952,111030.0,111020.0,0.3797947]
[1760238727749,0.07212397,111060.0,111030.0,0.1891373]
[1760238727952,0.08952952,111050.0,111040.0,0.19812493]
[1760238728164,0.09002987,111060.0,111050.0,0.18009905]
[1760238728370,0.00050035,111060.0,111050.0,0.59988375]
[1760238728570,0.00050035,111060.0,111050.0,1.04380565]
[1760238729107,0.00050035,111060.0,111050.0,0.7279741]
[1760238729308,0.00050035,111060.0,111050.0,1.04380565]
[1760238729741,0.00050035,111060.0,111050.0,0.03999]
[1760238730059,0.00050035,111060.0,111050.0,0.67365375]
[1760238730982,0.00050035,111060.0,111050.0,0.59988375]
[1760238732043,0.00050035,111060.0,111050.0,0.67365375]
[1760238732450,0.00638526,111060.0,111050.0,0.67365375]
[1760238732681,0.00638526,111060.0,111050.0,1.4875635]
[1760238732893,0.00638526,111060.0,111050.0,1.1077688]
[1760238733327,0.00638526,111060.0,111050.0,1.57709302]
[1760238733547,0.02519999,111150.0,111090.0,0.5688303]
[1760238733769,0.02519999,111150.0,111120.0,0.56877958]
[1760238733770,0.16115314,111140.0,111120.0,0.56877958]
[1760238733990,0.08952952,111140.0,111130.0,0.57776104]
[1760238734206,0.00035018,111150.0,111140.0,0.17995321]
[1760238734422,0.00035018,111150.0,111120.0,0.06378791]
[1760238734653,0.08952952,111140.0,111120.0,0.17997911]
[1760238734860,0.08952952,111140.0,111110.0,0.4197847]
[1760238734861,0.2694988,111140.0,111110.0,0.4197847]
[1760238735098,0.2694988,111140.0,111110.0,0.59978306]
[1760238735303,0.08952952,111140.0,111110.0,0.59978306]
[1760238735509,0.08952952,111140.0,111120.0,0.17998323]
[1760238735724,0.08952952,111140.0,111120.0,0.39675886]
[1760238735934,0.1799694,111130.0,111100.0,0.3797947]
[1760238736161,0.26951785,111120.0,111100.0,0.07162362]
[1760238736382,0.65831183,111120.0,111090.0,0.3797947]
[1760238736580,0.18001192,111110.0,111080.0,0.59533022]